bitfinex-derivatives/quotes_BTCF0:USTF0_20250811
["timestamp","ask_amount","ask_price","bid_price","bid_amount"]
[1754925137288,0.83432,119940.0,119930.0,0.083389]
[1754925137489,0.85291,119940.0,119930.0,0.57226332]
[1754925137694,0.85291,119940.0,119930.0,0.63274332]
[1754925137881,0.80584,119940.0,119930.0,0.83553383]
[1754925138590,0.80584,119940.0,119930.0,0.93543383]
[1754925138794,1.5001,119950.0,119930.0,1.35235703]
[1754925138986,2.3344,119950.0,119940.0,0.59229712]
[1754925139185,2.40041415,119950.0,119940.0,0.1843028]
[1754925140786,2.40041415,119950.0,119940.0,0.0834828]
[1754925140992,2.93222437,119950.0,119940.0,0.0834828]
[1754925141290,2.93222437,119950.0,119940.0,0.0041]
[1754925142190,2.93222437,119950.0,119940.0,0.0874828]
[1754925142394,2.48379005,119950.0,119940.0,0.0874828]
[1754925143593,2.93222437,119950.0,119940.0,0.1873828]
[1754925144085,2.93222437,119950.0,119940.0,0.104]
[1754925144389,2.93222437,119950.0,119940.0,0.1873828]
[1754925145493,2.93222437,119950.0,119940.0,0.104]
[1754925146693,2.93222437,119950.0,119940.0,0.1873829]
[1754925146895,2.93222437,119950.0,119940.0,0.104]
[1754925148089,2.93222437,119950.0,119940.0,0.04908]
[1754925148295,2.93367558,119950.0,119940.0,0.04908]
[1754925148495,2.93367558,119950.0,119940.0,0.10744]
[1754925149697,3.15041958,119950.0,119940.0,0.10744]
[1754925149996,3.15041958,119950.0,119940.0,0.10754]
[1754925151102,3.15141958,119950.0,119940.0,0.10754]
[1754925151793,3.15241958,119950.0,119940.0,0.11354]
[1754925152693,3.56922896,119950.0,119940.0,0.0472557]
[1754925152897,3.56822896,119950.0,119940.0,0.0502557]
[1754925153389,3.11979464,119950.0,119940.0,0.0502557]
[1754925154496,3.56822896,119950.0,119940.0,0.0502557]
[1754925154999,3.11979464,119950.0,119940.0,0.0502557]
[1754925155892,3.56822896,119950.0,119940.0,0.0502557]
[1754925156092,3.11979464,119950.0,119940.0,0.0502557]
[1754925156301,3.05389421,119950.0,119940.0,0.0502557]
[1754925157495,3.77549421,119950.0,119940.0,0.0502557]
[1754925158009,3.77277421,119950.0,119940.0,0.0502557]
[1754925159600,3.60603021,119950.0,119940.0,0.0646557]
[1754925162504,3.64078021,119950.0,119940.0,0.0646557]
[1754925169206,3.25824632,119950.0,119940.0,0.0646557]
[1754925169407,3.64078021,119950.0,119940.0,0.0646557]
[1754925170199,3.25824632,119950.0,119940.0,0.0646557]
[1754925170505,3.64078021,119950.0,119940.0,0.0646557]
[1754925171906,3.64078021,119950.0,119940.0,0.0995657]
[1754925172304,4.79378021,119950.0,119940.0,0.1961157]
[1754925172501,4.79378021,119950.0,119940.0,0.2223157]
[1754925172701,3.60804632,119950.0,119940.0,0.189659]
[1754925172901,3.98739682,119950.0,119940.0,0.68823289]
[1754925173100,4.40468071,119950.0,119940.0,0.2223157]
[1754925173306,3.96050431,119950.0,119940.0,0.305699]
[1754925173508,3.54176921,119950.0,119940.0,0.305699]
[1754925174506,3.62514561,119950.0,119940.0,0.305699]
[1754925175011,3.54176921,119950.0,119940.0,0.305699]
[1754925175616,3.62514561,119950.0,119940.0,0.305699]
[1754925176114,3.54176921,119950.0,119940.0,0.305699]
[1754925176711,3.54176921,119950.0,119940.0,1.04903289]
[1754925176907,3.54176921,119950.0,119940.0,0.666499]
[1754925177110,3.54176921,119950.0,119940.0,1.04903289]
[1754925177410,3.54168921,119950.0,119940.0,1.04903289]
[1754925177913,3.52331415,119950.0,119940.0,1.24345901]
[1754925178315,2.72011415,119950.0,119940.0,1.24345901]
[1754925178513,3.52331415,119950.0,119940.0,1.20230331]
[1754925179010,3.52331415,119950.0,119940.0,1.00787719]
[1754925180612,3.60669055,119950.0,119940.0,0.6253433]
[1754925180814,4.02220444,119950.0,119940.0,0.2640633]
[1754925181115,3.63967055,119950.0,119940.0,0.6248633]
[1754925183217,3.60669055,119950.0,119940.0,0.6248633]
[1754925183807,3.63967055,119950.0,119940.0,0.6248633]
[1754925184821,3.60669095,119950.0,119940.0,1.00739719]
[1754925185716,3.63967095,119950.0,119940.0,1.00739719]
[1754925186925,2.40329415,119950.0,119940.0,0.6248633]
[1754925187122,2.40329415,119950.0,119940.0,1.00739719]
[1754925187822,2.37031415,119950.0,119940.0,1.00739719]
[1754925188419,1.56711415,119950.0,119940.0,1.17414119]
[1754925188619,2.37007415,119950.0,119940.0,1.17414119]
[1754925189023,2.37007415,119950.0,119940.0,1.18245593]
[1754925189621,2.37007415,119950.0,119940.0,1.01571193]
[1754925189823,0.80306,119960.0,119940.0,1.39921863]
[1754925190121,0.87013568,119960.0,119950.0,0.91781099]
[1754925190420,0.06707568,119960.0,119950.0,0.98116099]
[1754925190616,2.30306,119970.0,119960.0,0.0833701]
[1754925190819,2.30296,119970.0,119960.0,0.98115399]
[1754925191016,1.5,119970.0,119960.0,0.98115399]
[1754925191222,2.30288,119970.0,119960.0,1.34229211]
[1754925192317,0.80288,119970.0,119960.0,1.34229211]
[1754925192518,0.1996691,120000.0,119980.0,0.2500564]
[1754925192820,0.1666752,120010.0,120000.0,0.2500096]
[1754925193020,0.9912352,120010.0,120000.0,0.2832096]
[1754925193220,0.9912352,120010.0,120000.0,0.3153896]
[1754925193519,1.09067632,120010.0,120000.0,0.6761896]
[1754925194116,1.09367632,120010.0,120000.0,0.6761896]
[1754925194313,1.09367632,120010.0,120000.0,0.6762896]
[1754925194817,1.09367632,120010.0,120000.0,0.3154896]
[1754925195323,1.09367632,120010.0,120000.0,0.0001]
[1754925195324,1.83701021,120010.0,120000.0,0.0001]
[1754925195621,1.84301021,120010.0,120000.0,0.0011]
[1754925196021,1.84301021,120010.0,120000.0,0.0844423]
[1754925196222,1.84301021,120010.0,120000.0,0.0011]
[1754925198222,1.75967171,120010.0,119980.0,0.610863]
[1754925198426,0.46588319,119990.0,119980.0,0.250063]
[1754925198724,1.68398319,119990.0,119980.0,0.083353]
[1754925199120,1.32318319,119990.0,119980.0,0.083353]
[1754925200327,1.68398319,119990.0,119980.0,0.083353]
[1754925200627,1.32318319,119990.0,119980.0,0.083453]
[1754925200821,1.68398319,119990.0,119980.0,0.083453]
[1754925201217,1.68398319,119990.0,119980.0,0.183353]
[1754925201723,1.68398319,119990.0,119980.0,0.1]
[1754925201917,1.68398319,119990.0,119980.0,0.1833562]
[1754925202526,1.68498319,119990.0,119980.0,0.1833562]
[1754925202730,1.3024493,119990.0,119980.0,0.1833562]
[1754925203029,1.68498319,119990.0,119980.0,0.1833562]
[1754925205423,1.68498369,119990.0,119980.0,0.1833562]
[1754925206028,1.68998369,119990.0,119980.0,0.2175562]
[1754925206334,1.68998369,119990.0,119980.0,0.1843562]
[1754925206727,1.68998369,119990.0,119980.0,0.06472]
[1754925210634,2.84250369,119990.0,119980.0,0.06472]
[1754925210833,2.84250369,119990.0,119980.0,0.06482]
[1754925213239,3.00919169,119990.0,119980.0,0.06482]
[1754925213429,3.00919169,119990.0,119970.0,0.05834]
[1754925213634,1.20922478,119980.0,119970.0,0.05834]
[1754925214138,0.9933949,119980.0,119970.0,0.05834]
[1754925215330,0.9933949,119980.0,119970.0,0.09153]
[1754925215331,1.62889089,119980.0,119970.0,0.09153]
[1754925215536,1.62889089,119980.0,119970.0,0.09163]
[1754925215736,0.82669089,119980.0,119970.0,0.1418039]
[1754925215939,1.62881089,119980.0,119970.0,0.2739639]
[1754925216131,1.62881089,119980.0,119970.0,0.2135939]
[1754925216332,1.62881089,119980.0,119970.0,0.2626239]
[1754925216333,1.26801089,119980.0,119970.0,0.2626239]
[1754925216546,1.62881089,119980.0,119970.0,0.2959939]
[1754925217032,1.26801089,119980.0,119970.0,0.2689939]
[1754925217237,1.26801089,119980.0,119970.0,0.2959939]
[1754925217437,0.885477,119980.0,119970.0,0.3174939]
[1754925217632,1.62881089,119980.0,119970.0,0.1964939]
[1754925218135,1.62881089,119980.0,119970.0,0.3184939]
[1754925218335,1.26801089,119980.0,119970.0,0.3184939]
[1754925218936,1.246277,119980.0,119970.0,0.3184939]
[1754925219138,1.62881089,119980.0,119970.0,0.3184939]
[1754925219939,0.886477,119980.0,119970.0,0.3184939]
[1754925220439,1.26901089,119980.0,119970.0,0.3184939]
[1754925220643,0.886477,119980.0,119970.0,0.3184939]
[1754925221033,0.001,119980.0,119970.0,0.3184939]
[1754925221328,0.803,119980.0,119970.0,0.3184939]
[1754925221531,0.001,119980.0,119970.0,0.3184939]
[1754925221731,0.80292,119980.0,119970.0,0.70102779]
[1754925222227,0.80292,119980.0,119970.0,0.3184939]
[1754925223543,0.8862768,119980.0,119970.0,1.06182779]
[1754925223740,0.80284,119980.0,119970.0,1.06182779]
[1754925223935,0.0001,119990.0,119970.0,1.52861869]
[1754925224137,0.0001,119990.0,119980.0,0.92025069]
[1754925224342,0.8018,119990.0,119980.0,1.14768969]
[1754925224628,0.8851498,119990.0,119980.0,1.14768969]
[1754925225438,0.8861498,119990.0,119980.0,0.7651558]
[1754925227142,0.8871498,119990.0,119980.0,0.8720558]
[1754925227641,0.8871498,119990.0,119980.0,1.25458969]
[1754925229539,0.8871498,119990.0,119980.0,0.8720558]
[1754925229735,0.8028,119990.0,119980.0,1.25658969]
[1754925230941,0.8028,119990.0,119980.0,1.26508437]
[1754925232846,0.8028,119990.0,119980.0,1.43177237]
[1754925233542,0.001,119990.0,119980.0,1.43177237]
[1754925234541,0.80142,120000.0,119990.0,0.0833507]
[1754925234747,0.80132,120000.0,119990.0,0.98097459]
[1754925235048,0.06656112,120010.0,119990.0,1.14767139]
[1754925235345,0.06656112,120010.0,120000.0,0.92023769]
[1754925235542,0.86774112,120010.0,120000.0,0.98096769]
[1754925237046,0.86874112,120010.0,120000.0,0.98096769]
[1754925237438,0.95207792,120010.0,120000.0,0.98096769]
[1754925237838,1.33461181,120010.0,120000.0,0.5984338]
[1754925238050,1.33466181,120010.0,120000.0,0.5984338]
[1754925238240,1.33466181,120010.0,120000.0,0.0834438]
[1754925238436,1.69546181,120010.0,120000.0,0.0834438]
[1754925238944,1.69546181,120010.0,120000.0,0.1179138]
[1754925239135,1.69546181,120010.0,120000.0,0.03457]
[1754925239337,1.69546181,120010.0,120000.0,0.0001]
[1754925240252,2.07944624,120010.0,120000.0,0.0001]
[1754925240843,2.29610224,120010.0,120000.0,0.0001]
[1754925241147,0.0833577,119980.0,119970.0,0.2595329]
[1754925241342,1.62753159,119980.0,119970.0,0.1417047]
[1754925241743,1.62753159,119980.0,119970.0,0.1761747]
[1754925242545,1.63053159,119980.0,119970.0,0.1761747]
[1754925242746,1.63053159,119980.0,119970.0,0.2761747]
[1754925243249,1.2479977,119980.0,119970.0,0.2761747]
[1754925243437,1.63053159,119980.0,119970.0,0.3514947]
[1754925243640,1.63053159,119980.0,119970.0,0.3141047]
[1754925243842,1.2479977,119980.0,119970.0,0.3940047]
[1754925244145,0.8871977,119980.0,119970.0,0.3940047]
[1754925246149,1.26973159,119980.0,119970.0,0.3940047]
[1754925246356,1.63053159,119980.0,119970.0,0.2417047]
[1754925246955,1.63053159,119980.0,119970.0,0.3940047]
[1754925247350,0.89575596,119980.0,119970.0,0.3940047]
[1754925247656,0.8871977,119980.0,119970.0,0.3940047]
[1754925247851,0.80384,119980.0,119970.0,0.3940047]
[1754925248054,0.003,119980.0,119970.0,0.77653859]
[1754925248258,0.80368,119980.0,119970.0,0.77653859]
[1754925249050,0.80368,119980.0,119970.0,0.7548047]
[1754925249249,0.003,119980.0,119970.0,1.13733859]
[1754925249450,0.8036,119980.0,119970.0,1.13733859]
[1754925249653,0.8126,119980.0,119970.0,1.13833859]
[1754925250458,0.8126,119980.0,119970.0,1.08292859]
[1754925250658,0.8126,119980.0,119970.0,1.27735471]
[1754925251960,0.8126,119980.0,119970.0,1.08292859]
[1754925253356,0.012,119980.0,119970.0,1.08292859]
[1754925253552,0.81236,119980.0,119970.0,1.08292859]
[1754925254068,1e-07,119980.0,119970.0,1.24963259]
[1754925254261,0.0001,119990.0,119980.0,0.0833577]
[1754925254462,0.80038,120000.0,119990.0,0.0833508]
[1754925254761,0.06646112,120010.0,120000.0,0.0833438]
[1754925254762,0.86684112,120010.0,120000.0,0.0833438]
[1754925254963,0.80028,120010.0,120000.0,0.92366769]
[1754925255357,0.80028,120010.0,120000.0,0.5411338]
[1754925255558,0.80028,120010.0,120000.0,0.92366769]
[1754925256060,0.80028,120010.0,120000.0,1.02356769]
[1754925256262,0.80028,120010.0,120000.0,1.02456769]
[1754925256458,0.80028,120010.0,120000.0,1.03056769]
[1754925256963,0.80028,120010.0,120000.0,1.02456769]
[1754925257164,0.80328,120010.0,120000.0,1.02456769]
[1754925257568,0.8866169,120010.0,120000.0,1.02456769]
[1754925257963,0.80328,120010.0,120000.0,1.02456769]
[1754925258468,0.80528,120010.0,120000.0,1.02356769]
[1754925258669,0.87167446,120010.0,120000.0,1.02356769]
[1754925259161,0.87167446,120010.0,120000.0,1.08189769]
[1754925259555,0.95501136,120010.0,120000.0,1.08189769]
[1754925267663,0.95501136,120010.0,120000.0,1.02356769]
[1754925267870,0.95501136,120010.0,120000.0,0.6410338]
[1754925268168,1.33754525,120010.0,120000.0,0.6993638]
[1754925268366,0.95501136,120010.0,120000.0,0.6993638]
[1754925271770,0.95501136,120010.0,120000.0,1.08189769]
[1754925273863,0.95501136,120010.0,120000.0,0.6993638]
[1754925274063,0.95501136,120010.0,120000.0,0.3385638]
[1754925276271,0.95501136,120010.0,120000.0,0.3373038]
[1754925276660,1.33754525,120010.0,120000.0,0.15833]
[1754925276865,1.33754525,120010.0,120000.0,0.2416739]
[1754925277465,1.69834525,120010.0,120000.0,0.2416739]
[1754925277868,0.95501136,120010.0,120000.0,0.2586239]
[1754925278074,0.95501136,120010.0,120000.0,0.3375639]
[1754925278275,0.07139446,120010.0,120000.0,1.08089779]
[1754925278575,0.87015446,120010.0,120000.0,1.08089779]
[1754925279282,0.95349136,120010.0,120000.0,1.08089779]
[1754925279573,0.87015446,120010.0,120000.0,1.08089779]
[1754925279769,0.07139446,120010.0,120000.0,1.08089779]
[1754925279972,0.87007446,120010.0,120000.0,1.08089779]
[1754925280672,0.95341136,120010.0,120000.0,1.08089779]
[1754925280875,0.95341136,120010.0,120000.0,0.6983639]
[1754925281077,0.95341136,120010.0,120000.0,0.3375639]
[1754925281570,0.95341136,120010.0,120000.0,0.2832539]
[1754925281774,0.95341136,120010.0,120000.0,0.3375639]
[1754925282880,0.95341136,120010.0,120000.0,0.72009779]
[1754925283067,0.87007446,120010.0,120000.0,0.72009779]
[1754925283269,0.87007446,120010.0,120000.0,1.08089779]
[1754925284579,0.86983446,120010.0,120000.0,1.27532391]
[1754925285375,2.36971446,120010.0,120000.0,1.6578578]
[1754925285678,1.57139446,120010.0,120000.0,1.8245138]
[1754925285878,1.57139446,120010.0,120000.0,1.63008768]
[1754925286379,0.07139446,120010.0,120000.0,1.63008768]
[1754925286581,0.79842,120020.0,120000.0,1.79677098]
[1754925286774,0.79842,120020.0,120010.0,0.80040389]
[1754925286981,2.29832,120020.0,120010.0,0.92256079]
[1754925287279,2.36451562,120020.0,120010.0,1.16051773]
[1754925287871,2.36551562,120020.0,120010.0,1.16051773]
[1754925288072,2.36551562,120020.0,120010.0,1.26041773]
[1754925288678,2.36951562,120020.0,120010.0,1.07235906]
[1754925288875,2.36951562,120020.0,120010.0,1.45489295]
[1754925289272,2.36951562,120020.0,120010.0,1.21693601]
[1754925289680,2.40343562,120020.0,120010.0,1.21693601]
[1754925289979,2.48676562,120020.0,120010.0,1.02246079]
[1754925290280,2.40343562,120020.0,120010.0,1.02246079]
[1754925294274,2.36951562,120020.0,120010.0,1.02246079]
[1754925294475,1.57119562,120020.0,120010.0,1.82018079]
[1754925294674,0.79788,120030.0,120020.0,0.08333]
[1754925294880,0.0001,120030.0,120020.0,1.11684012]
[1754925295183,1.5001,120030.0,120020.0,1.11684012]
[1754925295377,1.53402,120030.0,120020.0,1.11684012]
[1754925295780,1.53402,120030.0,120020.0,1.12499878]
[1754925295968,1.53402,120030.0,120020.0,0.93071255]
[1754925296174,1.60027005,120030.0,120020.0,1.03361255]
[1754925296986,1.60027005,120030.0,120020.0,1.03461255]
[1754925297280,1.60027005,120030.0,120020.0,1.09293255]
[1754925297480,1.56635005,120030.0,120020.0,1.09293255]
[1754925298277,1.60027005,120030.0,120020.0,1.09293255]
[1754925301581,2.06612724,120030.0,120020.0,0.60635]
[1754925301885,2.06612724,120030.0,120020.0,0.24555]
[1754925302085,2.06612724,120030.0,120020.0,0.60635]
[1754925302284,1.68359335,120030.0,120020.0,0.60635]
[1754925302680,1.68359335,120030.0,120020.0,1.08553389]
[1754925303590,1.68359335,120030.0,120020.0,0.703]
[1754925303781,1.68359335,120030.0,120020.0,1.08553389]
[1754925305795,1.68359335,120030.0,120020.0,0.703]
[1754925306392,1.68359335,120030.0,120020.0,1.08553389]
[1754925307392,1.68359335,120030.0,120020.0,0.703]
[1754925307583,1.68359335,120030.0,120020.0,1.08553389]
[1754925308790,1.60027005,120030.0,120020.0,1.08553389]
[1754925310685,1.60027005,120030.0,120020.0,1.31196012]
[1754925311486,0.10027005,120030.0,120020.0,1.31196012]
[1754925311691,0.12319005,120030.0,120020.0,1.31196012]
[1754925312190,1.62319005,120030.0,120020.0,1.31196012]
[1754925314182,1.62083005,120030.0,120020.0,1.31196012]
[1754925315994,1.58927005,120030.0,120020.0,1.31196012]
[1754925316294,1.62083005,120030.0,120020.0,1.31196012]
[1754925317992,0.06635005,120030.0,120020.0,1.31196012]
[1754925318194,0.09791005,120030.0,120020.0,1.31196012]
[1754925318400,1.62083005,120030.0,120020.0,1.31196012]
[1754925318894,1.58927005,120030.0,120020.0,1.11767389]
[1754925320091,1.58927005,120030.0,120020.0,1.31196012]
[1754925320289,1.62083005,120030.0,120020.0,1.31196012]
[1754925320995,0.249942,120050.0,120030.0,0.2499594]
[1754925320996,0.03156,120050.0,120030.0,0.2499594]
[1754925321188,0.03156,120050.0,120040.0,1.33797418]
[1754925321386,0.03156,120050.0,120040.0,1.53226041]
[1754925321695,0.79612,120060.0,120050.0,0.0833094]
[1754925321897,2.31904,120060.0,120050.0,0.97752329]
[1754925322198,2.4023425,120060.0,120050.0,0.97752329]
[1754925322490,2.4339025,120060.0,120050.0,0.61672329]
[1754925322695,2.4339025,120060.0,120050.0,0.71662329]
[1754925322994,1.6377825,120060.0,120050.0,0.71662329]
[1754925323193,2.50205506,120060.0,120050.0,0.1832094]
[1754925323498,2.50205506,120060.0,120050.0,0.2223494]
[1754925324786,2.50305506,120060.0,120050.0,0.2223494]
[1754925324986,2.50293506,120060.0,120050.0,0.2223494]
[1754925325187,2.50293506,120060.0,120050.0,0.3197194]
[1754925325389,2.50293506,120060.0,120050.0,0.2614794]
[1754925325585,2.50293506,120060.0,120050.0,0.2153494]
[1754925325790,2.50293506,120060.0,120050.0,0.2183494]
[1754925326095,1.70697506,120060.0,120050.0,0.2183494]
[1754925326294,2.50285506,120060.0,120050.0,0.69525329]
[1754925326494,2.50585506,120060.0,120050.0,0.69525329]
[1754925326795,2.50585506,120060.0,120050.0,0.71662329]
[1754925327394,1.70997506,120060.0,120050.0,0.71662329]
[1754925327696,2.50577506,120060.0,120050.0,0.71662329]
[1754925327896,2.50577506,120060.0,120050.0,0.68271329]
[1754925328487,1.70997506,120060.0,120050.0,0.71480329]
[1754925328689,2.50569506,120060.0,120050.0,0.71480329]
[1754925329397,2.50569506,120060.0,120050.0,0.72328039]
[1754925329595,2.50569506,120060.0,120050.0,0.71480329]
[1754925329893,2.50561506,120060.0,120050.0,0.71480329]
[1754925330397,2.50561506,120060.0,120050.0,0.2544794]
[1754925330596,2.50561506,120060.0,120050.0,0.63701329]
[1754925331298,2.50557506,120060.0,120050.0,0.7238198]
[1754925331492,1.62667256,120060.0,120050.0,0.7238198]
[1754925331891,2.42215256,120060.0,120050.0,1.0846198]
[1754925333697,2.42524256,120060.0,120050.0,1.0846198]
[1754925333997,1.62976256,120060.0,120050.0,1.0846198]
[1754925334391,1.57219256,120060.0,120050.0,1.0846198]
[1754925335392,1.57219256,120060.0,120050.0,1.8798598]
[1754925335693,0.03475,120070.0,120050.0,2.0464352]
[1754925335895,0.61898549,120100.0,120090.0,0.0832827]
[1754925336202,0.549396,120100.0,120090.0,0.49851659]
[1754925336390,1.379246,120100.0,120090.0,0.49851659]
[1754925336602,1.018446,120100.0,120090.0,0.49851659]
[1754925336895,1.018406,120100.0,120090.0,0.1159827]
[1754925337092,1.02675556,120100.0,120090.0,0.1219827]
[1754925337402,1.018406,120100.0,120090.0,0.50451659]
[1754925337701,1.018406,120100.0,120090.0,0.60441659]
[1754925337900,1.018406,120100.0,120090.0,0.60641659]
[1754925338795,0.05669,120100.0,120090.0,1.08473659]
[1754925338994,0.03465,120100.0,120090.0,1.33458049]
[1754925339593,0.85165,120100.0,120090.0,1.33458049]
[1754925340097,0.85165,120100.0,120090.0,1.34294507]
[1754925340298,0.85165,120100.0,120090.0,1.34094507]
[1754925340800,0.05669,120100.0,120090.0,1.33494507]
[1754925341002,0.85153,120100.0,120090.0,1.33494507]
[1754925341200,0.05669,120100.0,120090.0,1.33494507]
[1754925341399,0.03465,120100.0,120090.0,2.12974507]
[1754925341999,0.06687212,120110.0,120100.0,0.083276]
[1754925342195,0.06677212,120110.0,120100.0,0.97682989]
[1754925342400,0.0001,120120.0,120110.0,0.0832691]
[1754925342595,0.9960243,120130.0,120120.0,0.0832622]
[1754925342800,0.05669,120130.0,120120.0,0.61601609]
[1754925343011,0.85145,120130.0,120120.0,0.99854998]
[1754925343304,0.05669,120130.0,120120.0,1.35934998]
[1754925343799,0.82947,120140.0,120120.0,1.60913208]
[1754925344007,0.82947,120140.0,120130.0,0.91553909]
[1754925344303,0.82937,120140.0,120130.0,0.97680909]
[1754925344503,0.85141,120140.0,120130.0,0.97680909]
[1754925344703,0.85141,120140.0,120130.0,1.07670909]
[1754925345000,0.05669,120140.0,120130.0,1.07670909]
[1754925345202,0.05669,120140.0,120130.0,1.08501034]
[1754925345397,1.6399383,120140.0,120130.0,1.08501034]
[1754925345703,1.55669,120140.0,120130.0,1.08501034]
[1754925345906,2.35121,120140.0,120130.0,1.08701034]
[1754925346096,2.35117,120140.0,120130.0,1.08701034]
[1754925346501,2.35117,120140.0,120130.0,1.09201034]
[1754925346702,2.4344183,120140.0,120130.0,1.09201034]
[1754925346904,2.4344183,120140.0,120130.0,1.08370909]
[1754925347103,2.08984025,120140.0,120130.0,0.2228552]
[1754925347300,2.50174636,120140.0,120130.0,0.2208552]
[1754925347599,2.86242636,120140.0,120130.0,0.2208552]
[1754925347801,1.62405806,120140.0,120130.0,0.96418909]
[1754925347994,1.62405806,120140.0,120130.0,1.08170909]
[1754925348303,1.62605806,120140.0,120130.0,1.07670909]
[1754925348507,2.50358636,120140.0,120130.0,0.6941752]
[1754925348708,2.50358636,120140.0,120130.0,1.07670909]
[1754925349005,2.50358636,120140.0,120130.0,0.6941752]
[1754925349206,2.50358636,120140.0,120130.0,1.07670909]
[1754925349407,1.62605806,120140.0,120130.0,1.07670909]
[1754925349604,2.42033806,120140.0,120130.0,1.07670909]
[1754925350804,2.42021806,120140.0,120130.0,0.6941752]
[1754925351010,2.42021806,120140.0,120130.0,1.07670909]
[1754925351912,1.62605806,120140.0,120130.0,1.07670909]
[1754925352101,2.42021806,120140.0,120130.0,1.07670909]
[1754925352303,2.42021806,120140.0,120130.0,0.6941752]
[1754925352610,1.62605806,120140.0,120130.0,1.87082909]
[1754925353009,0.00018,120150.0,120130.0,1.07670909]
[1754925353311,0.79426,120150.0,120140.0,0.91553219]
[1754925353510,0.79416,120150.0,120140.0,0.97680219]
[1754925354307,8e-05,120150.0,120140.0,1.07670219]
[1754925355605,8e-05,120150.0,120140.0,1.45923608]
[1754925355805,1.56755014,120160.0,120140.0,1.79219238]
[1754925356012,1.56755014,120160.0,120150.0,1.29805918]
[1754925356312,1.56745014,120160.0,120150.0,2.09213918]
[1754925356513,0.06745014,120160.0,120150.0,2.09213918]
[1754925356820,0.0001,120170.0,120160.0,0.0832345]
[1754925357014,0.7942,120180.0,120170.0,0.0832275]
[1754925357218,0.0001,120180.0,120170.0,0.97678139]
[1754925357517,1.5001,120180.0,120170.0,0.97678139]
[1754925357912,1.5833206,120180.0,120170.0,0.6941475]
[1754925358115,1.5833206,120180.0,120170.0,0.6378975]
[1754925358415,2.3784806,120180.0,120170.0,0.6950075]
[1754925358611,2.3784806,120180.0,120170.0,1.07754139]
[1754925358811,1.5833206,120180.0,120170.0,0.5439275]
[1754925359013,1.5833206,120180.0,120170.0,0.18306122]
[1754925359014,2.3783606,120180.0,120170.0,0.18306122]
[1754925359217,1.5833206,120180.0,120170.0,0.59681511]
[1754925359418,2.44626612,120180.0,120170.0,0.59681511]
[1754925359821,2.44626612,120180.0,120170.0,0.59881511]
[1754925360126,2.44626612,120180.0,120170.0,0.21628122]
[1754925360320,2.39408001,120180.0,120170.0,0.1019]
[1754925360520,2.61050401,120180.0,120170.0,0.1019]
[1754925360723,3.40678401,120180.0,120170.0,0.1079]
[1754925360919,3.76283247,120180.0,120170.0,0.1079]
[1754925361127,4.17649858,120180.0,120170.0,0.1079]
[1754925361317,4.12653858,120180.0,120170.0,0.1079]
[1754925361514,3.33029858,120180.0,120170.0,0.1079]
[1754925361713,4.55943247,120180.0,120170.0,0.1079]
[1754925361920,4.55947247,120180.0,120170.0,0.09980001]
[1754925362122,0.0832483,120140.0,120130.0,0.6938208]
[1754925362327,0.8802083,120140.0,120130.0,0.3330208]
[1754925362518,0.8802083,120140.0,120130.0,0.3642408]
[1754925362913,0.0832483,120140.0,120130.0,0.3642408]
[1754925363119,0.8800883,120140.0,120130.0,0.3642408]
[1754925363724,0.0872483,120140.0,120130.0,0.81096753]
[1754925364024,0.004,120140.0,120130.0,1.28830753]
[1754925364229,0.004,120140.0,120130.0,1.35780794]
[1754925364421,0.80048,120140.0,120130.0,1.35780794]
[1754925365118,0.80076,120140.0,120130.0,1.35780794]
[1754925365314,0.004,120140.0,120130.0,1.35780794]
[1754925366724,0.0872483,120140.0,120130.0,1.35780794]
[1754925366934,0.004,120140.0,120130.0,1.35780794]
[1754925367226,0.004,120140.0,120130.0,0.91108121]
[1754925367427,0.80048,120140.0,120130.0,1.35780794]
[1754925367927,0.004,120140.0,120130.0,1.35780794]
[1754925368121,0.0872483,120140.0,120130.0,1.35780794]
[1754925368322,0.004,120140.0,120130.0,1.35780794]
[1754925369518,0.004,120140.0,120130.0,1.41480794]
[1754925369723,0.79968,120140.0,120130.0,0.8985808]
[1754925370231,0.8829283,120140.0,120130.0,0.8985808]
[1754925370930,0.8829283,120140.0,120130.0,1.34530753]
[1754925371126,0.4480483,120140.0,120130.0,0.5127856]
[1754925371430,1.2436883,120140.0,120130.0,0.2817704]
[1754925371630,1.2438883,120140.0,120130.0,0.3129904]
[1754925372132,1.85693504,120140.0,120130.0,0.1985152]
[1754925372325,1.85733504,120140.0,120130.0,0.11526]
[1754925372530,1.06980515,120140.0,120130.0,0.11526]
[1754925372730,1.11980515,120140.0,120130.0,0.11526]
[1754925372920,1.94156652,120140.0,120130.0,0.11526]
[1754925373125,1.77508651,120140.0,120130.0,0.00542796]
[1754925373324,0.97892651,120140.0,120130.0,0.00542796]
[1754925373526,1.77560651,120140.0,120130.0,0.03842796]
[1754925373825,0.97892651,120140.0,120130.0,0.03842796]
[1754925374025,1.77544651,120140.0,120130.0,0.04042796]
[1754925374227,1.77144651,120140.0,120130.0,0.00742796]
[1754925374422,1.77144651,120140.0,120130.0,0.04342796]
[1754925374627,0.083276,120100.0,120090.0,0.2810567]
[1754925374830,0.879436,120100.0,120090.0,0.1977763]
[1754925375130,0.083276,120100.0,120090.0,0.2548863]
[1754925375439,0.94444165,120100.0,120090.0,0.3143163]
[1754925375733,0.94428165,120100.0,120090.0,0.3143163]
[1754925375931,0.14828165,120100.0,120090.0,0.3143163]
[1754925376132,0.86200565,120100.0,120090.0,0.3143163]
[1754925376322,0.86200565,120100.0,120090.0,0.76104303]
[1754925376527,0.06600565,120100.0,120090.0,1.12184303]
[1754925376729,0.94540165,120100.0,120090.0,0.76104303]
[1754925376928,0.06600565,120100.0,120090.0,1.12184303]
[1754925377234,0.86212565,120100.0,120090.0,1.12184303]
[1754925377428,0.86412565,120100.0,120090.0,1.12184303]
[1754925377628,0.86412565,120100.0,120090.0,1.34460344]
[1754925377629,0.06800565,120100.0,120090.0,1.34460344]
[1754925378030,0.15128165,120100.0,120090.0,1.34460344]
[1754925378334,0.86468565,120100.0,120090.0,1.34460344]
[1754925379137,0.06800565,120100.0,120090.0,1.34460344]
[1754925379935,0.06800565,120100.0,120090.0,1.28517344]
[1754925380138,0.15128165,120100.0,120090.0,0.78133671]
[1754925380339,0.94772165,120100.0,120090.0,0.35774426]
[1754925380541,0.94772165,120100.0,120090.0,0.53707671]
[1754925380841,0.94760165,120100.0,120090.0,0.53707671]
[1754925381343,0.94748165,120100.0,120090.0,0.2572063]
[1754925381537,0.94732165,120100.0,120090.0,0.1977763]
[1754925381844,0.0832829,120090.0,120080.0,0.1337198]
[1754925382137,0.8793629,120090.0,120080.0,0.1337198]
[1754925382341,0.0832829,120090.0,120080.0,0.1337198]
[1754925382541,1.2403229,120090.0,120080.0,0.1659898]
[1754925382744,0.0832829,120090.0,120080.0,0.1659898]